fUSD/lending_fUSD_20250119
["ID","MTS","AMOUNT","RATE_DAILY","PERIOD"]
[349520729,1737274880855,-200.0,0.00011754,2]
[349520730,1737274880901,-17320.07750883,0.00011756,2]
[349520731,1737274880938,-17320.07750883,0.00011762,2]
[349520732,1737274880973,-230.8926734,0.00011799,2]
[349520733,1737274881007,-533.0243,0.000118,2]
[349520734,1737274881041,-25315.325,0.000118,2]
[349520735,1737274881078,-360.58433743,0.000118,2]
[349520736,1737274881113,-14459.7674,0.000118,2]
[349520737,1737274881273,-17320.07750883,0.00011808,2]
[349520738,1737274881294,-1268.0,0.00011865,2]
[349520739,1737274881319,-2017.0,0.00011865,2]
[349520740,1737274881340,-606.626,0.00011865,2]
[349520741,1737274881362,-1260.0,0.00011865,2]
[349520742,1737274881386,-396.898,0.00011865,2]
[349520743,1737274881408,-538.712,0.00011865,2]
[349520744,1737274881430,-3981.0,0.00011865,2]
[349520745,1737274881452,-3899.0,0.00011865,2]
[349520746,1737274881473,-1000.0,0.00011873,2]
[349520747,1737274881495,-2500.0,0.00011873,2]
[349520748,1737274881518,-3000.0,0.0001188,2]
[349520749,1737274881539,-500.0,0.000119,2]
[349520750,1737274881561,-322.1206,0.000119,2]
[349520751,1737274881584,-5000.0,0.000119,2]
[349520752,1737274881605,-6060.1209,0.000119,2]
[349520753,1737274881634,-38386.03354498,0.000119,2]
[349520756,1737275104409,653.50632515,0.00022,120]
[349520763,1737275233183,2270.48944378,0.00021,120]
[349520764,1737275234076,1393.78350603,0.00021,120]
[349520772,1737275327431,800.0,0.00021,120]
[349520773,1737275327789,195.78,0.0002,120]
[349520775,1737275358124,-2398.61931118,0.0001,2]
[349520792,1737275431472,-150.0,9.999e-05,2]
[349520794,1737275431482,-163236.29435516,0.0001,2]
[349520796,1737275431491,-255.0,0.00010999,2]
[349520798,1737275431502,-267.07,0.00011029,2]
[349520800,1737275431511,-165.64,0.00011103,2]
[349520801,1737275431520,-250.0,0.00011211,2]
[349520802,1737275431529,-16017.87,0.00011349,2]
[349520803,1737275431539,-13086.41613838,0.0001164,2]
[349520804,1737275431548,-295.9924436,0.0001176,2]
[349520805,1737275431557,-1199.4749,0.00011765,2]
[349520806,1737275431567,-430.3178249,0.00011772,2]
[349520807,1737275431576,-338.14,0.00011773,2]
[349520808,1737275431585,-220.7537,0.000118,2]
[349520809,1737275431594,-1055.58632525,0.000118,2]
[349520810,1737275431604,-151.0,0.00011865,2]
[349520811,1737275431613,-311.8727,0.00011873,2]
[349520812,1737275431622,-8244.0416,0.00011873,2]
[349520813,1737275431632,-1366.84141,0.0001188,2]
[349520814,1737275431641,-11315.92005502,0.000119,2]
[349520815,1737275431650,-167.89809292,0.000119,2]
[349520816,1737275431659,-66248.02327396,0.000119,2]
[349520817,1737275431669,-903.1611,0.000119,2]
[349520818,1737275431678,-5000.0,0.000119,2]
[349520819,1737275431687,-169.56200885,0.000119,2]
[349520820,1737275431697,-216.73462883,0.000119,2]
[349520821,1737275431706,-1171.19582376,0.000119,2]
[349520822,1737275431715,-987.38413339,0.000119,2]
[349520823,1737275431725,-2500.0,0.000119,2]
[349520824,1737275431734,-2500.0,0.000119,2]
[349520825,1737275431743,-253.07801629,0.000119,2]
[349520826,1737275431754,-1443.0,0.000119,2]
[349520827,1737275431763,-2956.44160712,0.000119,2]
[349520828,1737275431773,-2000.0,0.00011904,2]
[349520829,1737275431782,-150.99,0.00011904,2]
[349520830,1737275431796,-33856.0,0.00011973,2]
[349520831,1737275431805,-411.0,0.00011973,2]
[349520832,1737275431814,-500.0,0.00011973,2]
[349520833,1737275431823,-360.063,0.00011993,2]
[349520834,1737275431832,-190.81435957,0.00011993,2]
[349520835,1737275431842,-500.0,0.00011999,2]
[349520836,1737275431851,-59164.15750504,0.00012,2]
[349520837,1737275436216,-486.075,0.00012,2]
[349520838,1737275436228,-260.82,0.00012,2]
[349520839,1737275436240,-469.1440006,0.00012,2]
[349520840,1737275436342,-134780.0,0.00012,2]
[349520841,1737275436355,-2113.28286315,0.00012,2]
[349520842,1737275436366,-9523.85955772,0.00012,2]
[349520843,1737275436474,-1511.83772215,0.00012,2]
[349520844,1737275436486,-386.09999985,0.00012,2]
[349520845,1737275436503,-992.18563616,0.00012,2]
[349520846,1737275436517,-91929.89803248,0.00012,2]
[349520847,1737275436539,-11821.04809719,0.00012,2]
[349520848,1737275436552,-1535.79576675,0.00012,2]
[349520849,1737275436568,-55185.35160435,0.00012,2]
[349520850,1737275436577,-10166.27160162,0.00012,2]
[349520851,1737275436588,-38971.50852796,0.00012,2]
[349520852,1737275436600,-589.9999998,0.00012,2]
[349520858,1737275437465,-77073.92774952,0.00012,2]
[349520859,1737275437513,-386.91002,0.00012,2]
[349520860,1737275437625,-842.93501854,0.00012,2]
[349520861,1737275437643,-26998.998888,0.00012,2]
[349520862,1737275437682,-326.30342155,0.00012,2]
[349520863,1737275437740,-6312.7754266,0.00012,2]
[349520864,1737275437759,-77150.33309889,0.00012,2]
[349520865,1737275437795,-1060.63725388,0.00012,2]
[349520866,1737275437814,-1081.90180725,0.00012,2]
[349520867,1737275437833,-1319.29957021,0.00012,2]
[349521067,1737275439690,-3315.16225985,0.00012,2]
[349521074,1737275439746,-1008.6330837,0.00012,2]
[349521079,1737275439787,-3466.09562522,0.00012,2]
[349521082,1737275439802,-2918.09792665,0.00012,2]
[349521111,1737275440070,-2077.67232656,0.00012,2]
[349521112,1737275440081,-9917.94397583,0.00012,2]
[349521113,1737275440126,-520.30377282,0.00012,2]
[349521114,1737275440342,-31386.5496001,0.00012,2]
[349521416,1737275442839,-380.15000008,0.00012,2]
[349521421,1737275442850,-297.00784069,0.00012,2]
[349521424,1737275442862,-501.01584535,0.00012,2]
[349521429,1737275442881,-1187.17675604,0.00012,2]
[349521432,1737275442892,-2023.20943989,0.00012,2]
[349521444,1737275442945,-26956.0,0.00012,2]
[349521446,1737275442957,-546.18463235,0.00012,2]
[349521463,1737275445418,-400.0,0.000117,4]
[349521464,1737275445428,-665.04069627,0.00012,2]
[349521467,1737275445440,-307.99803834,0.00012,2]
[349521482,1737275445582,-691.794009,0.00012,2]
[349521489,1737275445642,-2517.73167598,0.00012,2]
[349521491,1737275445654,-558.95893136,0.00012,2]
[349521497,1737275445701,-833.73129557,0.00012,2]
[349521502,1737275446381,-274.7999971,0.00012,2]
[349521503,1737275446392,-459.2399994,0.00012,2]
[349521504,1737275446403,-939.95000075,0.00012,2]
[349521515,1737276190145,345.497024,0.00022,120]
[349521516,1737276192940,2000.0,0.00022,120]
[349521525,1737276573144,-439.17,9.186e-05,2]
[349521526,1737276573166,-128.52180768,0.00010137,2]
[349521538,1737276632411,-241.72819232,0.00010137,2]
[349521539,1737276632420,-397.07,0.00010588,2]
[349521540,1737276632429,-477.688095,0.00010601,2]
[349521541,1737276632438,-173.40642769,0.00010636,2]
[349521542,1737276632448,-169.79,0.00010639,2]
[349521543,1737276632457,-4637.01667019,0.00010655,2]
[349521544,1737276632466,-8.19065371,0.00010655,2]
[349521545,1737276632485,-316.38281201,0.00010655,2]
[349521546,1737276632495,-603.393028,0.00010655,2]
[349521547,1737276632508,-72.03350628,0.00010655,2]
[349521548,1737276632517,-250.0,0.00010736,2]
[349521549,1737276632526,-234.4,0.00010736,2]
[349521550,1737276632536,-460.65,0.0001076,2]
[349521551,1737276632545,-250.0,0.00010826,2]
[349521552,1737276632554,-83.91649272,0.00010826,2]
[349521553,1737276632574,-387.47350728,0.00010826,2]
[349521554,1737276632583,-1225.41546429,0.00010826,2]
[349521555,1737276632593,-1639.17453571,0.00010826,2]
[349521556,1737276632603,-500.0,0.00010863,2]
[349521557,1737276632612,-150.99,0.00010863,2]
[349521558,1737276632621,-17003.7758,0.00010986,2]
[349521559,1737276632630,-200.0,0.00010988,2]
[349521560,1737276632639,-250.0,0.00011028,2]
[349521561,1737276632648,-7821.4089,0.00011249,2]
[349521562,1737276632658,-439.17,0.0001145,2]
[349521564,1737276632667,-338.37588229,0.00011529,2]
[349521565,1737276632677,-879.655271,0.00011677,2]
[349521568,1737276632686,-300.0,0.000117,4]
[349521570,1737276632696,-339.47447249,0.00011723,2]
[349521572,1737276632707,-443.32149527,0.00011723,2]
[349521574,1737276632721,-6099.62023516,0.00011723,2]
[349522037,1737276637574,-323.323,0.00011723,2]
[349522040,1737276637590,-5169.27655438,0.00011723,2]
[349522042,1737276637599,-12375.0157573,0.00011738,2]
[349522044,1737276637609,-4605.18921832,0.00011752,2]
[349522049,1737276637645,-7769.82653898,0.00011752,2]
[349522051,1737276637655,-200.0,0.00011757,2]
[349522053,1737276637664,-1000.0,0.00011776,2]
[349522054,1737276637673,-2825.58252704,0.00011777,2]
[349522055,1737276637683,-6803.6734,0.0001178,2]
[349522056,1737276637692,-12375.0157573,0.00011799,2]
[349522057,1737276637701,-6899.5487,0.000118,2]
[349522058,1737276637710,-14591.36315134,0.000118,2]
[349522059,1737276637719,-311.8727,0.000118,2]
[349522060,1737276637728,-700.0,0.000118,4]
[349522061,1737276637737,-242.39772227,0.000118,2]
[349522062,1737276637746,-1302.7733,0.000118,2]
[349522063,1737276637756,-12375.0157573,0.00011808,2]
[349522064,1737276637769,-41926.10780955,0.0001188,2]
[349522065,1737276637778,-150.0,0.00011885,2]
[349522066,1737276637787,-150.0,0.00011885,2]
[349522067,1737276637797,-475.51921599,0.00011899,2]
[349522068,1737276637806,-175.32638408,0.00011899,2]
[349522069,1737276637816,-1870.7781,0.000119,2]
[349522070,1737276637825,-1000.0,0.000119,2]
[349522071,1737276637834,-26297.4477839,0.000119,2]
[349522072,1737276637846,-1049.9992778,0.000119,2]
[349522073,1737276637857,-926.00436037,0.000119,2]
[349522074,1737276637868,-828.79930785,0.000119,2]
[349522075,1737276637887,-259.48552903,0.000119,2]
[349522076,1737276637898,-834.7901721,0.000119,2]
[349522077,1737276637910,-92692.42954073,0.000119,2]
[349522078,1737276637977,-43387.77196651,0.000119,2]
[349522079,1737276637988,-30451.30196171,0.000119,2]
[349522080,1737276637997,-167.89809289,0.000119,2]
[349522081,1737276638006,-5000.0,0.000119,2]
[349522082,1737276638018,-1100.0,0.000119,4]
[349522083,1737276638027,-1112.12624266,0.000119,2]
[349522084,1737276638036,-1631.05831817,0.000119,2]
[349522085,1737276638045,-2000.0,0.00011904,2]
[349522086,1737276638054,-500.0,0.00011973,2]
[349522087,1737276638063,-500.0,0.00011973,2]
[349522088,1737276638073,-161.9185283,0.00011973,2]
[349522089,1737276638082,-1000.0,0.00011987,2]
[349522090,1737276638091,-285.65219739,0.0001199,2]
[349522091,1737276638100,-1037.10875049,0.00011999,3]
[349522092,1737276638109,-1037.10875049,0.00011999,3]
[349522093,1737276638119,-288.05,0.00011999,2]
[349522094,1737276638128,-500.0,0.00011999,2]
[349522095,1737276638138,-4476.78868049,0.00012,2]
[349522096,1737276638154,-1020.01945052,0.00012,2]
[349522101,1737276639717,-21568.76811707,0.00012,2]
[349522102,1737276639753,-453.588412,0.00012,2]
[349522103,1737276639766,-305.50005067,0.00012,2]
[349522104,1737276639778,-350.6800001,0.00012,2]
[349522105,1737276639790,-679.965,0.00012,2]
[349522106,1737276639801,-1635.33664,0.00012,2]
[349522107,1737276639843,-14342.21836858,0.00012,2]
[349522108,1737276640473,-376.11990529,0.00012,2]
[349522361,1737276642736,-15435.83419396,0.00011286,2]
[349522364,1737276642745,-4936.8307616,0.00011992,2]
[349522367,1737276642754,-11279.48008791,0.00012,2]
[349522371,1737276642767,-3562.5190858,0.00012,2]
[349522376,1737276642779,-398.9248,0.00012,2]
[349522386,1737276642808,-379.9999475,0.00012,2]
[349522389,1737276642819,-1989.40049298,0.00012,2]
[349522400,1737276642903,-10893.08674528,0.00012,2]
[349522406,1737276642943,-3221.932,0.00012,2]
[349522639,1737276645631,-10108.34577727,0.00012,2]
[349522640,1737276645739,-1541.73725272,0.00012,2]
[349522641,1737276645751,-3212.682715,0.00012,2]
[349522642,1737276645764,-1873.663905,0.00012,2]
[349522643,1737276645776,-2634.34523054,0.00012,2]
[349522644,1737276645798,-260.0650004,0.00012,2]
[349522645,1737276645811,-564.65031709,0.00012,2]
[349522647,1737276645824,-6382.55891473,0.00012,2]
[349522649,1737276645835,-1438.8500002,0.00012,2]
[349522652,1737276645846,-511.0,0.00012,2]
[349522655,1737276645865,-588.94,0.00012,2]
[349522661,1737276645916,-5253.43692996,0.00012,2]
[349522669,1737276645974,-27988.15898411,0.00012,2]
[349522671,1737276645986,-28815.82135084,0.00012,2]
[349522712,1737276646364,-897.31159319,0.00011286,2]
[349523658,1737277501140,163.52,8.289e-05,2]
[349523663,1737277755196,-721.68123643,9.301e-05,2]
[349523682,1737277831900,-13.10876357,9.301e-05,2]
[349523684,1737277831911,-617.0478966,0.00010255,2]
[349523686,1737277831922,-340.28204471,0.00010255,2]
[349523687,1737277831931,-703.21795529,0.00010341,2]
[349523690,1737277832120,-3213.725,0.00010341,2]
[349523691,1737277832134,-3842.26704471,0.00010341,2]
[349523692,1737277832143,-0.61728557,0.00010346,2]
[349523693,1737277832155,-931.58997161,0.00010346,2]
[349523694,1737277832270,-67.79274282,0.00010346,2]
[349523695,1737277832281,-289.00935032,0.00010353,2]
[349523696,1737277832297,-515.467408,0.00010353,2]
[349523697,1737277832375,-2497.10910517,0.00010353,2]
[349523698,1737277832385,-200.0,0.00010353,2]
[349523699,1737277832395,-773.04,0.00010355,2]
[349523700,1737277832405,-250.0,0.00010368,2]
[349523702,1737277832415,-699.56,0.00010413,2]
[349523704,1737277832425,-167.15,0.00010414,2]
[349523706,1737277832435,-447.24,0.00010457,2]
[349523707,1737277832445,-1532.4,0.00010472,2]
[349523708,1737277832456,-250.0,0.00010525,2]
[349523709,1737277832466,-493.91,0.00010534,2]
[349523710,1737277832476,-805.45,0.00010557,2]
[349523711,1737277832485,-250.0,0.00010569,2]
[349523712,1737277832495,-23900.0,0.00010635,2]
[349523713,1737277832505,-10869.85,0.00010637,2]
[349523714,1737277832515,-218.82,0.00010669,2]
[349523716,1737277832528,-500.0,0.0001074,2]
[349523717,1737277832539,-160.4,0.00010908,2]
[349523719,1737277832555,-160.4,0.00010917,2]
[349523721,1737277832570,-160.4,0.00010926,2]
[349523723,1737277832580,-160.4,0.00010935,2]
[349523725,1737277832591,-160.4,0.00010944,2]
[349523726,1737277832601,-160.4,0.00010953,2]
[349523727,1737277832611,-150.0,0.00010958,2]
[349523728,1737277832622,-6196.18,0.00010959,2]
[349523730,1737277832633,-150.0,0.00010959,2]
[349523732,1737277832643,-500.0,0.00010962,2]
[349523734,1737277832654,-160.4,0.00010962,2]
[349523736,1737277832666,-233.14,0.00011013,2]
[349523738,1737277832675,-171.01,0.00011269,2]
[349523740,1737277832686,-304.68489207,0.00011293,2]
[349523742,1737277832696,-4129.68,0.00011358,2]
[349523744,1737277832705,-4300.0,0.00011527,2]
[349523746,1737277832715,-734.79,0.00011565,2]
[349523748,1737277832725,-3380.97100863,0.00011631,2]
[349524203,1737277837836,-519.02899137,0.00011631,2]
[349524206,1737277837846,-150.0,0.00011631,2]
[349524209,1737277837856,-1000.0,0.0001164,2]
[349524211,1737277837865,-321.16700119,0.00011659,2]
[349524213,1737277837877,-17.2088811,0.00011659,2]
[349524215,1737277837887,-300.0,0.00011699,2]
[349524217,1737277837896,-525.6,0.00011699,2]
[349524219,1737277837906,-156.66607889,0.000117,4]
[349524221,1737277837917,-43.33392111,0.000117,4]
[349524223,1737277837927,-243.6820353,0.0001176,2]
[349524225,1737277837937,-151.0,0.00011773,2]
[349524227,1737277837946,-736.1003,0.000118,2]
[349524229,1737277837956,-261.4457,0.000118,2]
[349524231,1737277837966,-500.0,0.000118,4]
[349524233,1737277837976,-833.2789407,0.00011873,2]
[349524237,1737277837999,-5965.5298593,0.00011873,2]
[349524239,1737277838010,-2038.8696,0.00011873,2]
[349524241,1737277838021,-805.45,0.00011876,2]
[349524243,1737277838030,-1991.19895152,0.0001188,2]
[349524246,1737277838056,-1008.80104848,0.0001188,2]
[349524248,1737277838065,-66.40029879,0.00011885,2]
[349524250,1737277838077,-83.59970121,0.00011885,2]
[349524252,1737277838086,-2017.0,0.00011885,2]
[349524254,1737277838095,-31.31118087,0.00011885,2]
[349524257,1737277838107,-1237.68881913,0.00011885,2]
[349524259,1737277838117,-567.0,0.00011885,2]
[349524260,1737277838127,-150.0,0.00011885,2]
[349524262,1737277838144,-636.0,0.00011885,2]
[349524264,1737277838158,-1620.20406192,0.00011885,2]
[349524267,1737277838171,-242.79593808,0.00011885,2]
[349524269,1737277838181,-2946.0,0.00011885,2]
[349524271,1737277838192,-820.0,0.00011885,2]
[349524273,1737277838203,-907.0,0.00011885,2]
[349524274,1737277838213,-925.02271342,0.00011885,2]
[349524278,1737277838249,-334.97728658,0.00011885,2]
[349524280,1737277838260,-537.0,0.00011885,2]
[349524283,1737277838271,-972.47271342,0.00011885,2]
[349524285,1737277838284,-565.64697237,0.00011885,2]
[349524287,1737277838296,-578.67105093,0.00011885,2]
[349524289,1737277838312,-1865.20926328,0.00011885,2]
[349524291,1737277838323,-971.9096,0.000119,2]
[349524293,1737277838335,-167.89809289,0.000119,2]
[349524295,1737277838345,-168.52304377,0.000119,2]
[349524299,1737277838370,-4831.47695623,0.000119,2]
[349524301,1737277838380,-166.73794239,0.000119,2]
[349524303,1737277838390,-800.0,0.000119,4]
[349524305,1737277838400,-3921.19854883,0.000119,2]
[349524307,1737277838410,-2500.0,0.000119,2]
[349524308,1737277838420,-1544.15199081,0.000119,2]
[349524311,1737277838432,-1670.84413987,0.00011904,2]
[349524313,1737277838444,-329.15586013,0.00011904,2]
[349524315,1737277838454,-500.0,0.00011973,2]
[349524317,1737277838463,-220.84412987,0.00011973,2]
[349524319,1737277838475,-279.15587013,0.00011973,2]
[349524342,1737277838687,-105.33412987,0.00011992,2]
[349524344,1737277838704,-6460.56676073,0.00011992,2]
[349524346,1737277838713,-1668.5228949,0.00011992,2]
[349524348,1737277838722,-3686.0702087,0.00011992,2]
[349524350,1737277838732,-5064.9013393,0.00011992,2]
[349524352,1737277838742,-4018.29479638,0.00011992,2]
[349524423,1737277839933,-1299.01992218,0.00011293,2]
[349524425,1737277839945,-3588.49271253,0.00011293,2]
[349524427,1737277839959,-3134.40152002,0.00011992,2]
[349524429,1737277839969,-1158.77958308,0.00011999,2]
[349524431,1737277839979,-259.8803,0.00011999,2]
[349524433,1737277839988,-500.0,0.00011999,2]
[349524435,1737277839998,-494.914,0.00011999,2]
[349524437,1737277840008,-255.0,0.00011999,2]
[349524439,1737277840018,-14641.85198879,0.00012,2]
[349524441,1737277840030,-1606.60486625,0.00012,2]
[349524445,1737277840105,-31800.0,0.00012,2]
[349524446,1737277840165,-464.0,0.00012,2]
[349524447,1737277840176,-636.99999999,0.00012,2]
[349524448,1737277840224,-314.43996458,0.00012,2]
[349524486,1737277843009,-1000.0,0.00012,2]
[349524487,1737277843067,-37522.1176128,0.00012,2]
[349524488,1737277843126,-258.3226147,0.00012,2]
[349524489,1737277843138,-3201.07801999,0.00012,2]
[349524490,1737277843185,-262.39384985,0.00012,2]
[349524491,1737277843198,-1115.600082,0.00012,2]
[349524492,1737277843210,-26060.0,0.00012,2]
[349524493,1737277843222,-5799.05733318,0.00012,2]
[349524533,1737277845849,-780.830495,0.000119,2]
[349524546,1737277846008,-543.883,0.000119,2]
[349524547,1737277846020,-3194.40000001,0.000119,2]
[349524548,1737277846072,-472.25068525,0.000119,2]
[349524549,1737277846090,-636.28420447,0.000119,2]
[349524550,1737277846102,-1271.90031527,0.000119,2]
[349524551,1737277846112,-175.32638408,0.00011999,2]
[349524552,1737277846121,-475.51921599,0.00011999,2]
[349524553,1737277846130,-474.53740464,0.00012,2]
[349524554,1737277846141,-805.6747487,0.00012,2]
[349524555,1737277846160,-919.45000025,0.00012,2]
[349524556,1737277846171,-3772.81684648,0.00012,2]
[349524557,1737277846361,-2166.0532345,0.00012,2]
[349524572,1737277994234,2000.0,0.00022,120]
[349524579,1737278703154,205.02776581,0.00022,120]
[349524580,1737278703444,653.50632515,0.00022,120]
[349524584,1737278831918,2270.48944378,0.00021,120]
[349524585,1737278832848,1393.78350603,0.00021,120]
[349524587,1737278871571,158.59977367,0.0002,120]
[349524589,1737278905462,764.72,8.8e-05,2]
[349524592,1737278924072,258.4941106,0.00022,120]
[349524593,1737278926985,800.0,0.00021,120]
[349524594,1737278927570,195.78,0.0002,120]
[349524599,1737279005582,10000.0,0.0002021,30]
[349524619,1737279032114,-383.68,0.00010137,2]
[349524620,1737279032127,-500.0,0.00010787,2]
[349524621,1737279032136,-167.15,0.0001088,2]
[349524622,1737279032146,-979.15136682,0.00010888,2]
[349524623,1737279032158,-1446.33781593,0.00010888,2]
[349524624,1737279032170,-15979.51081725,0.00010888,2]
[349524625,1737279032179,-200.0,0.00010961,2]
[349524626,1737279032189,-1000.0,0.00010983,2]
[349524627,1737279032200,-250.0,0.0001106,2]
[349524628,1737279032210,-764.72,0.00011064,2]
[349524629,1737279032220,-150.0,0.00011146,2]
[349524630,1737279032229,-319.56,0.00011147,2]
[349524631,1737279032239,-1530.13121959,0.00011147,2]
[349524632,1737279032251,-3680.10878041,0.00011147,2]
[349524633,1737279032434,-10157.67,0.00011147,2]
[349524634,1737279032454,-150.99,0.00011147,2]
[349524635,1737279032465,-172.33,0.0001116,2]
[349524636,1737279032475,-9999.99,0.0001116,2]
[349524637,1737279032485,-3481.83,0.0001116,2]
[349524638,1737279032495,-4082.3,0.0001116,2]
[349524639,1737279032504,-3451.92,0.0001116,2]
[349524640,1737279032514,-299.99,0.0001116,2]
[349524641,1737279032523,-999.99,0.0001116,2]
[349524642,1737279032532,-5736.55827168,0.0001116,2]
[349524643,1737279032566,-4263.43172832,0.0001116,2]
[349524644,1737279032575,-246.95,0.00011186,2]
[349524645,1737279032584,-368.52,0.00011245,2]
[349524646,1737279032593,-250.0,0.00011334,2]
[349524647,1737279032602,-588.403,0.00011334,2]
[349524648,1737279032611,-1000.0,0.0001148,2]
[349524649,1737279032620,-18034.2,0.00011481,2]
[349524650,1737279032631,-1960.87,0.00011699,2]
[349524651,1737279032641,-1073.65163208,0.00011717,2]
[349524652,1737279032650,-372.08255029,0.00011718,2]
[349524653,1737279032659,-1524.43519999,0.00011725,2]
[349524654,1737279032669,-1073.65163208,0.0001173,2]
[349524655,1737279032678,-10698.4182196,0.0001173,2]
[349524656,1737279032687,-372.08255029,0.00011742,2]
[349524657,1737279032697,-316.53556136,0.00011742,2]
[349524658,1737279032706,-10698.4182196,0.00011748,2]
[349524659,1737279032716,-1524.43519999,0.00011751,2]
[349524660,1737279032726,-372.08255029,0.00011751,2]
[349524661,1737279032735,-1073.65163208,0.00011751,2]
[349524662,1737279032745,-1524.43519999,0.00011753,2]
[349524663,1737279032754,-10698.4182196,0.00011756,2]
[349524664,1737279032764,-10698.4182196,0.0001176,2]
[349524665,1737279032773,-243.6820354,0.0001176,2]
[349524666,1737279032783,-316.53556136,0.0001176,2]
[349524667,1737279032792,-10698.4182196,0.00011766,2]
[349524668,1737279032802,-316.53556136,0.00011769,2]
[349524669,1737279032811,-372.08255029,0.00011775,2]
[349524670,1737279032821,-1073.65163208,0.00011776,2]
[349524671,1737279032830,-6803.6734,0.0001178,2]
[349524672,1737279032846,-200.0,0.00011787,2]
[349524673,1737279032855,-200.0,0.00011788,2]
[349524674,1737279032865,-372.08255029,0.00011789,2]
[349524675,1737279032878,-1524.43519999,0.00011791,2]
[349524676,1737279032887,-1302.7733,0.00011792,2]
[349524677,1737279032897,-1073.65163208,0.00011796,2]
[349524678,1737279032907,-316.53556136,0.00011798,2]
[349524679,1737279032917,-332.6243,0.000118,2]
[349524680,1737279032932,-311.8727,0.000118,2]
[349524681,1737279032949,-272.39670546,0.000118,2]
[349524682,1737279032959,-169672.42825571,0.000118,2]
[349524683,1737279032971,-12793.57174429,0.000118,2]
[349524684,1737279032981,-4091.46638808,0.000118,2]
[349524685,1737279032990,-1524.43519999,0.00011804,2]
[349524686,1737279033000,-316.53556136,0.00011808,2]
[349524687,1737279033010,-41926.10780955,0.0001188,2]
[349524688,1737279033020,-3000.0,0.0001188,2]
[349524689,1737279033030,-1870.7781,0.00011892,2]
[349524690,1737279033040,-1000.0,0.000119,2]
[349524691,1737279033051,-27687.4478,0.000119,2]
[349524692,1737279033062,-218.4412,0.000119,2]
[349524693,1737279033073,-167.89809289,0.000119,2]
[349524694,1737279033083,-5000.0,0.000119,2]
[349524695,1737279033093,-150.0,0.00011901,2]
[349524696,1737279033104,-500.0,0.00011973,2]
[349524697,1737279033114,-5336.4564194,0.00011992,2]
[349524698,1737279033129,-3778.8022964,0.00011992,2]
[349524699,1737279033140,-4898.6623235,0.00011992,2]
[349524700,1737279033150,-509.1489157,0.00011992,2]
[349524701,1737279033160,-1244.8452051,0.00011992,2]
[349524702,1737279033170,-2768.2562794,0.00011992,2]
[349524703,1737279033181,-500.0,0.00011999,2]
[349524704,1737279033192,-31098.43568393,0.00012,2]
[349524705,1737279036509,-316.26467378,0.00011901,2]
[349524706,1737279036535,-3583.73532622,0.00011901,2]
[349524707,1737279036545,-124708.5407227,0.00012,2]
[349524708,1737279036555,-63931.70413246,0.00012,2]
[349524709,1737279036580,-1037.8,0.00012,2]
[349524710,1737279036705,-5394.188505,0.00012,2]
[349524711,1737279036717,-1656.14999991,0.00012,2]
[349524712,1737279036792,-978.54242646,0.00012,2]
[349524713,1737279036804,-321.76730336,0.00012,2]
[349524714,1737279036815,-11511.5000035,0.00012,2]
[349524715,1737279036913,-4153.82927351,0.00012,2]
[349524716,1737279036925,-1394.95907673,0.00012,2]
[349524728,1737279037972,-468.54598073,0.00012,2]
[349524729,1737279037983,-308.95304876,0.00012,2]
[349524730,1737279037994,-293.60288713,0.00012,2]
[349524731,1737279038005,-1523.15894907,0.00012,2]
[349524732,1737279038017,-434.62523875,0.00012,2]
[349524733,1737279038029,-1612.3350958,0.00012,2]
[349524734,1737279038048,-150735.49266189,0.00012,2]
[349524735,1737279038057,-150.0,0.00012,2]
[349524736,1737279038067,-150.0,0.00012,2]